bitfinex-derivatives/quotes_BTCF0:USTF0_20260131
["timestamp","ask_amount","ask_price","bid_price","bid_amount"]
[1769889043418,0.29048243,77823.0,77799.0,0.10252869]
[1769889043718,0.29048243,77823.0,77794.0,0.27784498]
[1769889043921,0.012869,77818.0,77794.0,0.27784498]
[1769889044115,0.12850992,77822.0,77794.0,0.27784498]
[1769889044311,0.09264,77826.0,77799.0,0.27784498]
[1769889044509,0.012868,77823.0,77799.0,0.27784498]
[1769889044912,0.012869,77819.0,77799.0,0.27784498]
[1769889045613,0.012868,77822.0,77799.0,0.27784498]
[1769889045813,0.012868,77820.0,77799.0,0.27784498]
[1769889046017,0.012869,77818.0,77799.0,0.27784498]
[1769889046218,0.29048243,77821.0,77796.0,0.10252869]
[1769889046416,0.012869,77817.0,77796.0,0.10252869]
[1769889046610,0.012868,77820.0,77795.0,0.10252869]
[1769889046813,0.012868,77820.0,77796.0,0.10252869]
[1769889047011,0.012868,77820.0,77796.0,0.27784498]
[1769889047217,0.09264,77826.0,77802.0,0.27784498]
[1769889047417,0.012868,77825.0,77804.0,0.27784498]
[1769889048020,0.09264,77826.0,77805.0,0.27784498]
[1769889048220,0.09264,77826.0,77806.0,0.27784498]
[1769889048422,0.09264,77843.0,77814.0,0.27784498]
[1769889048622,0.09264,77843.0,77816.0,0.27784498]
[1769889048822,0.41899318,77839.0,77814.0,0.10252869]
[1769889049121,0.29048243,77839.0,77814.0,0.10252869]
[1769889049323,0.12849093,77838.0,77814.0,0.10252869]
[1769889049619,0.012866,77836.0,77814.0,0.10252869]
[1769889049824,0.12849093,77838.0,77812.0,0.27784498]
[1769889050024,0.012866,77836.0,77813.0,0.27784498]
[1769889050320,0.09264,77843.0,77823.0,0.27784498]
[1769889051015,0.09264,77843.0,77824.0,0.27784498]
[1769889051421,0.09264,77843.0,77826.0,0.27784498]
[1769889051617,0.09264,77843.0,77828.0,0.27784498]
[1769889051923,0.09264,77857.0,77832.0,0.27784498]
[1769889052114,0.09264,77857.0,77834.0,0.27784498]
[1769889052316,0.09264,77857.0,77836.0,0.27784498]
[1769889052922,0.09264,77857.0,77840.0,0.27784498]
[1769889053420,0.012861,77866.0,77840.0,0.27784498]
[1769889053923,0.012861,77863.0,77840.0,0.27784498]
[1769889054117,0.012862,77859.0,77840.0,0.27784498]
[1769889054425,0.29048243,77869.0,77840.0,0.27784498]
[1769889054830,0.012863,77854.0,77831.0,0.70936498]
[1769889055127,0.012863,77852.0,77832.0,0.27784498]
[1769889055927,0.29048243,77867.0,77832.0,0.27784498]
[1769889056227,0.1055,77871.0,77831.0,0.43152]
[1769889056228,0.012861,77862.0,77842.0,0.27784498]
[1769889056424,0.12846535,77864.0,77842.0,0.27784498]
[1769889056722,0.09264,77871.0,77842.0,0.27784498]
[1769889057128,0.12846535,77870.0,77842.0,0.27784498]
[1769889057726,0.12846535,77870.0,77845.0,0.27784498]
[1769889057924,0.012861,77866.0,77845.0,0.27784498]
[1769889058123,0.012861,77866.0,77845.0,0.29070898]
[1769889058325,0.012861,77866.0,77845.0,0.27784498]
[1769889058830,0.012861,77864.0,77845.0,0.27784498]
[1769889059025,0.09264,77871.0,77845.0,0.27784498]
[1769889059225,0.012862,77857.0,77835.0,0.29071098]
[1769889059622,0.012862,77862.0,77835.0,0.27784498]
[1769889059828,0.29048243,77864.0,77835.0,0.27784498]
[1769889060027,0.29048243,77862.0,77835.0,0.27784498]
[1769889060328,0.012862,77857.0,77835.0,0.27784498]
[1769889060540,0.12845297,77861.0,77837.0,0.27784498]
[1769889060729,0.012863,77854.0,77837.0,0.27784498]
[1769889061427,0.29048243,77853.0,77819.0,0.27784498]
[1769889061626,0.29048243,77850.0,77819.0,0.27784498]
[1769889061820,0.29048243,77836.0,77801.0,0.27784498]
[1769889062025,0.012869,77816.0,77792.0,0.27784498]
[1769889062220,0.105468,77819.0,77792.0,0.27784498]
[1769889062432,0.39595043,77819.0,77791.0,0.0926]
[1769889062628,0.29048243,77818.0,77791.0,0.0926]
[1769889062828,0.01287,77810.0,77791.0,0.0926]
[1769889063024,0.0926,77819.0,77795.0,0.27784498]
[1769889063231,0.0926,77819.0,77791.0,0.0926]
[1769889063232,0.0926,77819.0,77797.0,0.27784498]
[1769889063528,0.0826,77819.0,77797.0,0.27784498]
[1769889063729,0.0826,77819.0,77801.0,0.27784498]
[1769889065329,0.0826,77819.0,77801.0,0.27884498]
[1769889065531,0.3388,77835.0,77801.0,0.27884498]
[1769889065732,0.09264,77832.0,77803.0,0.27784498]
[1769889066034,0.12851818,77834.0,77814.0,0.27784498]
[1769889066231,0.012865,77843.0,77814.0,0.27784498]
[1769889066532,0.012865,77841.0,77816.0,0.27784498]
[1769889066725,0.105504,77848.0,77822.0,0.27784498]
[1769889067123,0.33884,77864.0,77829.0,0.012867]
[1769889067327,0.012862,77861.0,77832.0,0.28861751]
[1769889067632,0.012862,77858.0,77832.0,0.28861751]
[1769889068228,0.09264,77864.0,77832.0,0.28861751]
[1769889068434,0.29677454,77855.0,77829.0,0.09264]
[1769889068731,0.012861,77862.0,77830.0,0.28861751]
[1769889068927,0.012864,77846.0,77829.0,0.09264]
[1769889069327,0.012864,77846.0,77830.0,0.28861751]
[1769889069733,0.012863,77850.0,77830.0,0.28861751]
[1769889069938,0.012864,77848.0,77830.0,0.28861751]
[1769889070333,0.012864,77848.0,77829.0,0.09264]
[1769889070930,0.29677454,77854.0,77829.0,0.09264]
[1769889071125,0.012863,77852.0,77829.0,0.09264]
[1769889071330,0.29677454,77860.0,77829.0,0.09264]
[1769889071531,0.11508224,77859.0,77829.0,0.09264]
[1769889071736,0.012864,77848.0,77829.0,0.09264]
[1769889072630,0.012864,77846.0,77829.0,0.09264]
[1769889072936,0.012865,77843.0,77829.0,0.09264]
[1769889073531,0.012864,77847.0,77829.0,0.09264]
[1769889074231,0.012865,77843.0,77829.0,0.09264]
[1769889074436,0.012865,77841.0,77829.0,0.09264]
[1769889074636,0.012865,77841.0,77821.0,0.28861751]
[1769889074833,0.012865,77838.0,77821.0,0.28861751]
[1769889075530,0.29563954,77848.0,77821.0,0.28861751]
[1769889075731,0.012865,77839.0,77821.0,0.28861751]
[1769889076142,0.012866,77837.0,77821.0,0.28861751]
[1769889076434,0.29563954,77848.0,77821.0,0.28861751]
[1769889076640,0.012865,77838.0,77821.0,0.28861751]
[1769889076834,0.012866,77836.0,77821.0,0.28861751]
[1769889077037,0.09264,77844.0,77813.0,0.28861751]
[1769889077341,0.09264,77844.0,77813.0,0.30148651]
[1769889077540,0.012866,77835.0,77816.0,0.28861751]
[1769889078335,0.012865,77839.0,77816.0,0.30148651]
[1769889078536,0.012866,77837.0,77816.0,0.30148651]
[1769889081748,0.09264,77844.0,77825.0,0.28861751]
[1769889082043,0.09264,77844.0,77827.0,0.28861751]
[1769889082438,0.012865,77841.0,77827.0,0.28861751]
[1769889082845,0.105504,77844.0,77827.0,0.28861751]
[1769889083045,0.012865,77842.0,77827.0,0.28861751]
[1769889083238,0.012865,77842.0,77820.0,0.30148551]
[1769889086237,0.012866,77834.0,77815.0,0.28861751]
[1769889086438,0.26885085,77840.0,77815.0,0.28861751]
[1769889086750,0.012869,77817.0,77802.0,0.28861751]
[1769889087046,0.012869,77817.0,77795.0,0.012872]
[1769889087248,0.29677454,77826.0,77794.0,0.28861751]
[1769889087438,0.11784093,77825.0,77798.0,0.012872]
[1769889087643,0.29677454,77826.0,77798.0,0.012872]
[1769889087644,0.012868,77821.0,77798.0,0.012872]
[1769889087845,0.012868,77821.0,77800.0,0.012872]
[1769889088240,0.012866,77835.0,77800.0,0.28861751]
[1769889088447,0.012865,77838.0,77818.0,0.28861751]
[1769889088646,0.012866,77836.0,77818.0,0.28861751]
[1769889089037,0.09264,77845.0,77810.0,0.38125751]
[1769889089038,0.56562539,77840.0,77810.0,0.38125751]
[1769889089242,0.012867,77827.0,77810.0,0.38125751]
[1769889089451,0.012869,77816.0,77794.0,0.28861751]
[1769889089749,0.29677454,77830.0,77793.0,0.09264]
[1769889089750,0.012869,77819.0,77796.0,0.30148951]
[1769889090152,0.12849011,77829.0,77817.0,0.28861751]
[1769889090452,0.012865,77839.0,77817.0,0.30148651]
[1769889090649,0.012862,77858.0,77829.0,0.28861751]
[1769889091047,0.012863,77855.0,77831.0,0.28861751]
[1769889091248,0.11545511,77854.0,77834.0,0.28861751]
[1769889091448,0.12846782,77857.0,77835.0,0.30148351]
[1769889091652,0.012862,77858.0,77837.0,0.28861751]
[1769889091950,0.012862,77858.0,77833.0,0.012866]
[1769889091951,0.11541777,77857.0,77841.0,0.28861751]
[1769889092149,0.09264,77865.0,77843.0,0.30148151]
[1769889092347,0.26775514,77885.0,77843.0,0.30148151]
[1769889092348,0.09264,77890.0,77854.0,0.28861751]
[1769889092546,0.29677454,77888.0,77854.0,0.28861751]
[1769889092742,0.1284538,77884.0,77854.0,0.28861751]
[1769889092941,0.11543455,77883.0,77854.0,0.28861751]
[1769889093150,0.012858,77881.0,77856.0,0.28861751]
[1769889093346,0.11543455,77880.0,77858.0,0.28861751]
[1769889093550,0.012859,77877.0,77858.0,0.28861751]
[1769889095450,0.012861,77868.0,77842.0,0.012865]
[1769889096154,0.012861,77863.0,77841.0,0.09264]
[1769889097251,0.0926,77873.0,77824.0,0.3388]
[1769889097252,0.012864,77848.0,77824.0,0.3388]
[1769889097552,0.28836305,77861.0,77808.0,0.25609226]
[1769889097553,0.012866,77837.0,77813.0,0.2792109]
[1769889098354,0.012866,77834.0,77813.0,0.2792109]
[1769889098651,0.012863,77850.0,77808.0,0.4314]
[1769889098652,0.012867,77826.0,77808.0,0.0926]
[1769889099345,0.28836305,77835.0,77808.0,0.0926]
[1769889099542,0.012867,77828.0,77808.0,0.0926]
[1769889100354,0.012868,77825.0,77808.0,0.0926]
[1769889100950,0.00015926,77834.0,77809.0,0.2920809]
[1769889101156,0.00015926,77834.0,77812.0,0.27065427]
[1769889101346,0.00015926,77834.0,77808.0,0.0926]
[1769889101347,0.00015926,77834.0,77817.0,0.27065427]
[1769889101553,0.012864,77847.0,77821.0,0.28352227]
[1769889102052,0.12849919,77851.0,77838.0,0.27065427]
[1769889102244,0.0926,77869.0,77838.0,0.27065427]
[1769889102448,0.0926,77887.0,77841.0,0.27065427]
[1769889102652,0.012859,77874.0,77851.0,0.27065427]
[1769889102946,0.012859,77878.0,77851.0,0.27065427]
[1769889103151,0.105457,77887.0,77856.0,0.27065427]
[1769889103357,0.0926,77887.0,77856.0,0.27065427]
[1769889103561,0.12842823,77886.0,77856.0,0.27065427]
[1769889103744,0.012858,77882.0,77856.0,0.27065427]
[1769889103948,0.12842823,77886.0,77856.0,0.27065427]
[1769889104146,0.28524916,77881.0,77850.0,0.26885085]
[1769889104356,0.01286,77872.0,77846.0,0.27065427]
[1769889104557,0.10546,77872.0,77846.0,0.27065427]
[1769889104858,0.12841751,77871.0,77838.0,0.012865]
[1769889105048,0.12841751,77871.0,77839.0,0.27065427]
[1769889105255,0.12841751,77871.0,77841.0,0.27065427]
[1769889105455,0.012858,77886.0,77856.0,0.27065427]
[1769889105759,0.12844472,77882.0,77856.0,0.27065427]
[1769889106257,0.12844472,77881.0,77853.0,0.0926]
[1769889106752,0.28524916,77883.0,77847.0,0.27065427]
[1769889106957,0.0926,77889.0,77847.0,0.27065427]
[1769889106958,0.012859,77879.0,77848.0,0.012864]
[1769889107253,0.0926,77889.0,77852.0,0.27065427]
[1769889107452,0.12005909,77888.0,77866.0,0.012861]
[1769889107655,0.12842988,77886.0,77866.0,0.012861]
[1769889107855,0.0926,77889.0,77866.0,0.012861]
[1769889108155,0.12842988,77888.0,77863.0,0.012861]
[1769889108360,0.12842988,77888.0,77866.0,0.012861]
[1769889108559,0.0926,77889.0,77866.0,0.012861]
[1769889108864,0.00442469,103210.0,77860.0,0.27065427]
[1769889108865,0.009851,77926.0,77895.0,0.012856]
[1769889109160,0.12840679,77924.0,77899.0,0.27065427]
[1769889109352,0.12840679,77924.0,77903.0,0.012855]
[1769889109553,0.0926,77936.0,77899.0,0.27065427]
[1769889109760,0.0926,77936.0,77907.0,0.012854]
[1769889109960,0.1283524,77930.0,77903.0,0.27065427]
[1769889110158,0.0926,77936.0,77903.0,0.27065427]
[1769889110362,0.012848,77944.0,77913.0,0.012853]
[1769889110860,0.105446,77958.0,77921.0,0.28350627]
[1769889110861,0.12834252,77940.0,77921.0,0.28350627]
[1769889111052,0.012847,77952.0,77921.0,0.28350627]
[1769889111255,0.012846,77956.0,77925.0,0.27065427]
[1769889111451,0.12834252,77951.0,77927.0,0.27065427]
[1769889111651,0.28524916,77957.0,77907.0,0.27065427]
[1769889111857,0.29809616,77947.0,77914.0,0.012853]
[1769889112053,0.29809616,77947.0,77907.0,0.27065427]
[1769889112054,0.28524916,77947.0,77915.0,0.0926]
[1769889112256,0.351566,77954.0,77915.0,0.0926]
[1769889112257,0.012851,77926.0,77915.0,0.0926]
[1769889112457,0.012849,77935.0,77915.0,0.0926]
[1769889112661,0.01285,77929.0,77915.0,0.0926]
[1769889112867,0.28524916,77928.0,77897.0,0.09256]
[1769889113062,0.28524916,77924.0,77897.0,0.09256]
[1769889113262,0.012853,77916.0,77897.0,0.09256]
[1769889113464,0.012852,77920.0,77897.0,0.09256]
[1769889114059,0.012849,77936.0,77906.0,0.012854]
[1769889114060,0.1283524,77919.0,77906.0,0.012854]
[1769889114263,0.012849,77936.0,77906.0,0.28350827]
[1769889114560,0.1283491,77935.0,77914.0,0.012853]
[1769889114865,0.28524916,77952.0,77919.0,0.27065427]
[1769889115064,0.012847,77949.0,77919.0,0.27065427]
[1769889115266,0.1283491,77948.0,77920.0,0.012852]
[1769889115467,0.012847,77949.0,77919.0,0.27065427]
[1769889115665,0.012846,77954.0,77919.0,0.27065427]
[1769889115861,0.1283137,77947.0,77919.0,0.27065427]
[1769889116165,0.012846,77954.0,77923.0,0.27065427]
[1769889116561,0.12831534,77953.0,77926.0,0.27065427]
[1769889116764,0.12831534,77953.0,77928.0,0.28350427]
[1769889117064,0.09256,77962.0,77928.0,0.27065427]
[1769889117065,0.012846,77959.0,77928.0,0.27065427]
[1769889117272,0.012846,77959.0,77932.0,0.27065427]
[1769889117563,0.12831534,77957.0,77932.0,0.27065427]
[1769889117863,0.012846,77959.0,77932.0,0.27065427]
[1769889118162,0.012843,77972.0,77939.0,0.27065427]
[1769889118354,0.012844,77970.0,77941.0,0.27065427]
[1769889119067,0.012845,77962.0,77941.0,0.27065427]
[1769889119261,0.012844,77968.0,77941.0,0.27065427]
[1769889119566,0.14113777,77975.0,77944.0,0.27065427]
[1769889119762,0.28524916,78001.0,77953.0,0.27065427]
[1769889119961,0.09252,77999.0,77958.0,0.27065427]
[1769889120165,0.012842,77977.0,77946.0,0.27065427]
[1769889120359,0.28524916,77975.0,77937.0,0.09252]
[1769889120554,0.28524916,77971.0,77924.0,0.27065427]
[1769889120759,0.012848,77945.0,77923.0,0.09252]
[1769889120962,0.28524916,77958.0,77923.0,0.09252]
[1769889120963,0.09252,77955.0,77923.0,0.36317427]
[1769889121162,0.09252,77955.0,77924.0,0.27065427]
[1769889121665,0.012842,77979.0,77923.0,0.09252]
[1769889121666,0.28524916,77979.0,77942.0,0.27065427]
[1769889122056,0.12830546,77967.0,77942.0,0.27065427]
[1769889122256,0.09252,77972.0,77946.0,0.27165427]
[1769889122457,0.28524916,78000.0,77950.0,0.27065427]
[1769889122662,0.012843,77976.0,77955.0,0.27065427]
[1769889123056,0.09252,77981.0,77957.0,0.27065427]
[1769889123260,0.09252,77981.0,77961.0,0.27065427]
[1769889125263,0.09252,77981.0,77960.0,0.26885085]
[1769889125666,0.012842,77980.0,77960.0,0.26885085]
[1769889125863,0.012843,77974.0,77960.0,0.26885085]
[1769889126068,0.12825281,77980.0,77960.0,0.26885085]
[1769889126363,0.012845,77961.0,77940.0,0.27065427]
[1769889126568,0.012845,77964.0,77940.0,0.27065427]
[1769889126962,0.012845,77962.0,77940.0,0.27065427]
[1769889127159,0.012845,77962.0,77930.0,0.26885085]
[1769889127160,0.28966654,77962.0,77930.0,0.26885085]
[1769889127571,0.012846,77953.0,77930.0,0.56387467]
[1769889127773,0.012847,77951.0,77930.0,0.56387467]
[1769889128071,0.012845,77962.0,77930.0,0.56387467]
[1769889128264,0.28966654,77961.0,77919.0,0.29502382]
[1769889128463,0.09252,77967.0,77897.0,0.012855]
[1769889128464,0.12828571,77950.0,77913.0,0.29502382]
[1769889128671,0.012848,77945.0,77930.0,0.26885085]
[1769889128866,0.28966654,77960.0,77930.0,0.26885085]
[1769889129168,0.09252,77967.0,77938.0,0.29502382]
[1769889129382,0.09252,77967.0,77950.0,0.26885085]
[1769889129572,0.09248,77973.0,77951.0,0.29502382]
[1769889129966,0.22077559,77973.0,77951.0,0.29502382]
[1769889130260,0.01284,77989.0,77963.0,0.26885085]
[1769889130465,0.012841,77987.0,77963.0,0.26885085]
[1769889130661,0.012842,77981.0,77960.0,0.29502382]
[1769889131272,0.012841,77985.0,77960.0,0.29502382]
[1769889131574,0.09248,77992.0,77962.0,0.29502382]
[1769889131775,0.012841,77989.0,77970.0,0.26885085]
[1769889131975,0.012841,77986.0,77962.0,0.29502382]
[1769889132369,0.01284,77989.0,77962.0,0.29502382]
[1769889132572,0.09248,77992.0,77970.0,0.26885085]
[1769889132875,0.12824787,77991.0,77962.0,0.40034882]
[1769889133071,0.09248,77992.0,77965.0,0.29502382]
[1769889133271,0.09248,77992.0,77972.0,0.29502382]
[1769889133464,0.01284,77991.0,77972.0,0.29502382]
[1769889133664,0.012841,77986.0,77962.0,0.43084]
[1769889133876,0.012841,77987.0,77962.0,0.43084]
[1769889134265,0.12824047,77986.0,77950.0,0.26885085]
[1769889134471,0.012842,77978.0,77951.0,0.29502382]
[1769889134972,0.012843,77975.0,77951.0,0.29502382]
[1769889135175,0.012844,77965.0,77950.0,0.26885085]
[1769889135366,0.012846,77958.0,77930.0,0.10533]
[1769889135567,0.012849,77937.0,77910.0,0.36133085]
[1769889135874,0.09248,77963.0,77928.0,0.29502382]
[1769889136073,0.012845,77964.0,77940.0,0.26885085]
[1769889136376,0.23358997,77969.0,77941.0,0.30787182]
[1769889136574,0.33832,77983.0,77948.0,0.012847]
[1769889136774,0.09248,77975.0,77950.0,0.012847]
[1769889137077,0.09248,77975.0,77946.0,0.09248]
[1769889137278,0.09248,77975.0,77953.0,0.012846]
[1769889137469,0.12828407,77974.0,77947.0,0.29502382]
[1769889137670,0.012843,77972.0,77947.0,0.29502382]
[1769889137970,0.09248,77975.0,77947.0,0.29502382]
[1769889137971,0.012843,77973.0,77947.0,0.29502382]
[1769889138367,0.09248,77975.0,77958.0,0.012846]
[1769889138873,0.09248,77991.0,77962.0,0.30786882]
[1769889139175,0.1282709,77992.0,77968.0,0.012844]
[1769889139480,0.09248,77995.0,77980.0,0.26885085]
[1769889141574,0.012841,77987.0,77959.0,0.30786882]
[1769889141777,0.012842,77979.0,77952.0,0.43076]
[1769889141972,0.012842,77980.0,77952.0,0.43076]
[1769889142173,0.012842,77977.0,77952.0,0.43076]
[1769889142373,0.012843,77975.0,77952.0,0.43076]
[1769889142574,0.012843,77975.0,77950.0,0.26885085]
[1769889142777,0.012844,77968.0,77950.0,0.26885085]
[1769889142980,0.12826103,77974.0,77950.0,0.26885085]
[1769889143177,0.09248,77981.0,77957.0,0.012846]
[1769889143376,0.105322,77981.0,77955.0,0.29502382]
[1769889143579,0.012842,77977.0,77955.0,0.29502382]
[1769889143775,0.14110961,77980.0,77955.0,0.29502382]
[1769889143979,0.09248,77981.0,77955.0,0.29502382]
[1769889144177,0.12826761,77979.0,77956.0,0.012846]
[1769889144376,0.12826761,77979.0,77955.0,0.29502382]
[1769889144576,0.09248,77981.0,77955.0,0.29502382]
[1769889144776,0.09248,77981.0,77955.0,0.30786982]
[1769889144977,0.12825774,77980.0,77958.0,0.29502382]
[1769889145282,0.09248,77981.0,77958.0,0.29502382]
[1769889145578,0.012842,77977.0,77953.0,0.09248]
[1769889145881,0.012843,77975.0,77953.0,0.09248]
[1769889146080,0.38214654,77981.0,77953.0,0.09248]
[1769889146081,0.1282561,77976.0,77953.0,0.09248]
[1769889146281,0.012843,77972.0,77953.0,0.09248]
[1769889146477,0.28966654,77980.0,77947.0,9.875e-05]
[1769889146673,0.28966654,77980.0,77924.0,0.29502382]
[1769889146674,0.28966654,77962.0,77925.0,0.012851]
[1769889146879,0.012846,77955.0,77927.0,0.012851]
[1769889147277,0.012846,77953.0,77924.0,0.29502382]
[1769889147582,0.2207435,77961.0,77917.0,0.43072]
[1769889147583,0.28966654,77959.0,77920.0,0.012852]
[1769889147776,0.012848,77945.0,77917.0,0.09248]
[1769889147977,0.012848,77943.0,77917.0,0.09248]
[1769889148483,0.00010155,77944.0,77919.0,0.012852]
[1769889148686,0.14116828,77942.0,77917.0,0.09248]
[1769889148983,0.00010155,77944.0,77917.0,0.09248]
[1769889149283,0.12832028,77941.0,77917.0,0.09248]
[1769889149478,0.012848,77943.0,77917.0,0.09248]
[1769889149678,0.12831946,77940.0,77917.0,0.09248]
[1769889150077,0.012848,77943.0,77917.0,0.09248]
[1769889150278,0.28966654,77938.0,77905.0,0.012854]
[1769889150587,0.4108433,77937.0,77917.0,0.001]
[1769889150785,0.12107521,77936.0,77917.0,0.001]
[1769889151290,0.012851,77926.0,77899.0,0.012855]
[1769889151584,0.00010155,77925.0,77901.0,0.012855]
[1769889151779,0.00010155,77925.0,77897.0,0.29502382]
[1769889151980,0.1284276,77925.0,77896.0,0.09248]
[1769889152281,0.01295255,77925.0,77896.0,0.09248]
[1769889152485,0.12832605,77924.0,77896.0,0.105336]
[1769889152683,0.11032605,77924.0,77896.0,0.012856]
[1769889153184,0.012851,77923.0,77895.0,0.012856]
[1769889153686,0.012853,77912.0,77882.0,0.105338]
[1769889153887,0.012854,77906.0,77882.0,0.09248]
[1769889154080,0.012855,77903.0,77882.0,0.09248]
[1769889154675,0.012855,77903.0,77871.0,0.01286]
[1769889154877,0.30252154,77901.0,77868.0,0.09248]
[1769889155082,0.012855,77898.0,77868.0,0.09248]
[1769889155387,0.09248,77897.0,77868.0,0.09248]
[1769889155583,0.012856,77896.0,77868.0,0.09248]
[1769889155776,0.012856,77894.0,77868.0,0.09248]
[1769889155980,0.012857,77891.0,77868.0,0.09248]
[1769889156181,0.012857,77888.0,77868.0,0.09248]
[1769889156485,0.012857,77891.0,77868.0,0.09248]
[1769889156684,0.12840596,77887.0,77860.0,0.29502382]
[1769889156896,0.12840596,77887.0,77834.0,0.00010031]
[1769889156897,0.012862,77857.0,77834.0,0.00010031]
[1769889157082,9.947e-05,77856.0,77834.0,0.00010031]
[1769889157582,0.012863,77851.0,77834.0,0.00010031]
[1769889157888,0.1284604,77855.0,77834.0,0.00010031]
[1769889158086,0.29664244,77856.0,77818.0,0.09252]
[1769889158290,0.42500337,77854.0,77818.0,0.09252]
[1769889158482,0.012865,77839.0,77818.0,0.09252]
[1769889158688,0.012866,77836.0,77818.0,0.09252]
[1769889159084,0.00012885,77835.0,77818.0,0.09252]
[1769889159381,0.00012885,77835.0,77819.0,0.28950671]
[1769889159778,0.012862,77856.0,77822.0,0.2847397]
[1769889160177,0.012862,77861.0,77828.0,0.2847397]
[1769889160387,0.012862,77857.0,77828.0,0.2847397]
[1769889160590,0.012863,77852.0,77818.0,0.3772597]
[1769889160787,0.00010062,77851.0,77819.0,0.001]
[1769889160981,0.012865,77841.0,77819.0,0.001]
[1769889161281,0.00013463,77840.0,77819.0,0.001]
[1769889161685,0.012863,77853.0,77822.0,0.28252136]
[1769889161886,0.29654297,77859.0,77822.0,0.28252136]
[1769889162090,0.27407536,77856.0,77822.0,0.28252136]
[1769889162483,0.012865,77843.0,77822.0,0.28252136]
[1769889162787,6.991e-05,77842.0,77822.0,0.28252136]
[1769889164390,0.012865,77841.0,77822.0,0.28252136]
[1769889164590,0.012865,77838.0,77818.0,0.09252]
[1769889164981,0.012865,77839.0,77818.0,0.09252]
[1769889165178,6.991e-05,77842.0,77818.0,0.09252]
[1769889165179,0.012866,77836.0,77818.0,0.09252]
[1769889165379,0.12848185,77841.0,77818.0,0.09252]
[1769889165684,0.28694136,77837.0,77805.0,0.09256]
[1769889165884,0.36670527,77836.0,77805.0,0.09256]
[1769889166089,0.012869,77819.0,77805.0,0.09256]
[1769889166284,0.09262991,77836.0,77805.0,0.09256]
[1769889166285,0.01287,77813.0,77805.0,0.09256]
[1769889166591,6.991e-05,77818.0,77790.0,0.33864]
[1769889166592,0.01287,77809.0,77790.0,0.33864]
[1769889166787,0.01287,77809.0,77791.0,0.09256]
[1769889167085,6.991e-05,77818.0,77792.0,0.28169151]
[1769889167086,0.12851488,77817.0,77792.0,0.28169151]
[1769889167390,0.01293891,77818.0,77795.0,0.28169151]
[1769889167587,0.09256,77838.0,77804.0,0.28245214]
[1769889167890,0.09256,77838.0,77794.0,0.33864]
[1769889167891,0.012866,77833.0,77806.0,0.29532314]
[1769889168592,0.12852727,77832.0,77806.0,0.28245214]
[1769889168884,0.09256,77838.0,77806.0,0.28245214]
[1769889169084,0.27407536,77837.0,77805.0,0.09256]
[1769889169282,0.012869,77815.0,77805.0,0.09256]
[1769889169486,0.01287,77812.0,77805.0,0.09256]
[1769889169686,0.012871,77806.0,77786.0,0.0926]
[1769889169989,0.012868,77823.0,77786.0,0.36943532]
[1769889170186,0.012868,77823.0,77787.0,0.27683532]
[1769889170387,0.012858,77880.0,77828.0,0.13546831]
[1769889170580,0.012862,77862.0,77835.0,0.04286831]
[1769889170892,0.08165442,77862.0,77848.0,0.012864]
[1769889171092,0.0926,77872.0,77849.0,0.33872]
[1769889171288,0.0907639,77872.0,77861.0,0.012862]
[1769889171492,0.33872,77888.0,77861.0,0.02969643]
[1769889171692,0.0926,77889.0,77862.0,0.01683443]
[1769889171890,0.12843482,77887.0,77862.0,0.01683443]
[1769889172090,0.0926,77889.0,77872.0,0.01286]
[1769889172285,0.0926,77889.0,77868.0,0.01286]
[1769889172484,0.0926,77889.0,77875.0,0.012859]
[1769889172790,0.0926,77889.0,77877.0,0.012859]
[1769889172989,0.0926,77889.0,77868.0,0.01683443]
[1769889173184,0.0496,77918.0,77896.0,0.012856]
[1769889173385,0.0496,77918.0,77885.0,0.01983443]
[1769889173584,0.22100184,77920.0,77886.0,0.012857]
[1769889173788,0.37044,77947.0,77884.0,0.012858]
[1769889173789,0.012848,77946.0,77899.0,0.00560311]
[1769889173989,0.0926,77947.0,77901.0,0.00560311]
[1769889174296,0.12835817,77946.0,77905.0,0.00560311]
[1769889174492,0.001,77918.0,77902.0,0.0926]
[1769889174692,0.001,77918.0,77903.0,0.012854]
[1769889175290,0.001,77918.0,77882.0,0.09820311]
[1769889175490,0.12833016,77917.0,77892.0,0.012856]
[1769889175691,0.12833016,77917.0,77888.0,0.012857]
[1769889176296,0.29813229,77925.0,77898.0,0.012855]
[1769889176599,0.12836558,77924.0,77905.0,0.012854]
[1769889176894,0.0926,77928.0,77905.0,0.012854]
[1769889177094,0.0926,77928.0,77900.0,0.09256]
[1769889177301,0.12836558,77927.0,77900.0,0.09256]
[1769889177597,0.42836558,77927.0,77900.0,0.09256]
[1769889177793,0.3,77926.0,77900.0,0.09256]
[1769889178297,0.3,77926.0,77903.0,0.012855]
[1769889178489,0.0926,77928.0,77900.0,0.09256]
[1769889178490,0.12834663,77925.0,77906.0,0.012854]
[1769889178690,0.0926,77928.0,77906.0,0.012854]
[1769889179106,0.3,77926.0,77900.0,0.09256]
[1769889179794,0.12834828,77925.0,77900.0,0.09256]
[1769889180191,0.3,77924.0,77893.0,0.012856]
[1769889180402,0.283,77924.0,77893.0,0.012856]
[1769889180698,0.283,77924.0,77896.0,0.012856]
[1769889180889,0.12835569,77923.0,77896.0,0.012856]
[1769889181488,0.12835569,77923.0,77884.0,0.00756472]
[1769889181693,0.12835569,77923.0,77861.0,0.00463032]
[1769889181899,0.105451,77928.0,77861.0,0.012861]
[1769889181900,0.012856,77893.0,77861.0,0.012861]
[1769889182092,0.012853,77911.0,77854.0,0.00463032]
[1769889182093,0.09256,77892.0,77854.0,0.00463032]
[1769889182294,0.012853,77911.0,77868.0,0.00463032]
[1769889182496,0.31131055,77904.0,77870.0,0.01286]
[1769889182695,0.29845655,77898.0,77866.0,0.012861]
[1769889182996,0.29845655,77896.0,77868.0,0.01286]
[1769889183200,0.29845655,77896.0,77871.0,0.01286]
[1769889183596,0.09256,77897.0,77853.0,0.09256]
[1769889183597,0.29706149,77891.0,77853.0,0.09256]
[1769889183902,0.29706149,77891.0,77862.0,0.012861]
[1769889184103,0.30991849,77891.0,77857.0,0.012862]
[1769889184295,0.30991949,77882.0,77853.0,0.09256]
[1769889184499,0.30991949,77882.0,77846.0,0.3386]
[1769889184500,0.29706149,77878.0,77844.0,0.012864]